bitfinex/quotes_SOLUSD_20250802
["timestamp","ask_amount","ask_price","bid_price","bid_amount"]
[1754098166976,0.03,164.13,164.12,95.6931026]
[1754098167191,0.03,164.13,164.12,142.75528218]
[1754098167192,0.71,164.13,164.12,142.75528218]
[1754098168297,0.71,164.13,164.12,138.4731026]
[1754098168497,0.71,164.13,164.12,142.75528218]
[1754098172217,0.03,164.13,164.12,142.75528218]
[1754098174149,0.03,164.15,164.14,42.78468397]
[1754098174317,13.23884601,164.19,164.15,16.78468397]
[1754098174641,13.23884601,164.19,164.18,4.28217958]
[1754098174822,17.34753122,164.19,164.18,47.04217958]
[1754098175007,13.23884601,164.19,164.18,47.04217958]
[1754098176315,13.23884601,164.19,164.18,53.13305544]
[1754098176503,13.92884601,164.19,164.18,47.04217958]
[1754098176905,13.92884601,164.19,164.18,49.4454325]
[1754098179898,13.92884601,164.19,164.18,55.53630836]
[1754098180397,13.92884601,164.19,164.18,145.10630836]
[1754098181405,13.23884601,164.19,164.18,145.10630836]
[1754098182313,13.26884601,164.19,164.18,145.10630836]
[1754098189311,13.26884601,164.19,164.18,161.89099233]
[1754098189915,13.26884601,164.19,164.18,162.05099233]
[1754098191729,0.03,164.21,164.2,82.39128797]
[1754098191939,0.03,164.21,164.2,131.81672047]
[1754098192136,0.72,164.21,164.2,131.81672047]
[1754098195412,0.03,164.21,164.2,131.81672047]
[1754098198811,0.03,164.21,164.2,129.4081135]
[1754098202641,4.09424036,164.27,164.21,76.27115399]
[1754098202642,0.71,164.23,164.21,76.27115399]
[1754098202853,0.71,164.23,164.22,46.99682553]
[1754098204159,0.71,164.23,164.22,53.0862178]
[1754098207357,0.71,164.23,164.22,129.35737179]
[1754098207857,0.71,164.24,164.22,129.35737179]
[1754098208159,0.03,164.28,164.23,4.27682553]
[1754098208370,0.03,164.28,164.25,4.27682553]
[1754098208730,0.71,164.27,164.25,4.27682553]
[1754098209756,0.71,164.27,164.26,4.27682553]
[1754098210848,0.71,164.27,164.26,123.24797952]
[1754098212257,0.71,164.27,164.26,118.97115399]
[1754098212438,0.71,164.27,164.26,123.24797952]
[1754098213054,0.71,164.27,164.26,118.97115399]
[1754098213364,0.71,164.27,164.26,123.24797952]
[1754098219366,0.71,164.27,164.26,118.97115399]
[1754098219860,0.71,164.27,164.26,123.24797952]
[1754098221644,0.71,164.27,164.26,118.97115399]
[1754098221852,4.80104311,164.27,164.26,76.27115399]
[1754098222045,9.07786864,164.27,164.26,76.27115399]
[1754098222442,4.80104311,164.27,164.26,76.27115399]
[1754098227975,4.83104311,164.27,164.26,76.27115399]
[1754098228475,4.84251678,164.27,164.26,76.27115399]
[1754098229367,4.13251678,164.27,164.26,76.27115399]
[1754098229548,4.84251678,164.27,164.26,76.27115399]
[1754098236663,9.11934231,164.27,164.26,76.27115399]
[1754098237184,4.84251678,164.27,164.26,76.27115399]
[1754098238688,9.11934231,164.27,164.26,76.27115399]
[1754098242100,4.84251678,164.27,164.26,76.27115399]
[1754098244192,9.97066276,164.27,164.26,76.27115399]
[1754098244386,9.26066276,164.27,164.26,76.27115399]
[1754098246502,4.13251678,164.27,164.26,76.27115399]
[1754098252308,4.13251678,164.27,164.26,80.54797952]
[1754098254389,9.09934231,164.27,164.26,76.27115399]
[1754098254888,4.82251678,164.27,164.26,76.27115399]
[1754098256778,4.13251678,164.27,164.26,76.27115399]
[1754098258096,4.13251678,164.27,164.25,53.3850897]
[1754098258413,0.03,164.27,164.25,53.3850897]
[1754098261109,0.03,164.27,164.25,49.10826417]
[1754098261299,4.13621129,164.27,164.25,47.13682553]
[1754098261793,4.82621129,164.27,164.25,47.13682553]
[1754098262317,0.69,164.26,164.25,47.13682553]
[1754098262534,0.69,164.26,164.25,42.86]
[1754098263319,0.69,164.26,164.25,119.13115399]
[1754098265816,4.82621129,164.27,164.25,119.13115399]
[1754098266202,4.13621129,164.27,164.25,123.40797952]
[1754098267537,0.03,164.27,164.25,123.40797952]
[1754098268297,4.13621129,164.27,164.25,123.40797952]
[1754098271114,4.82621129,164.27,164.25,123.40797952]
[1754098272025,4.82621129,164.27,164.25,119.13115399]
[1754098272720,0.69,164.26,164.25,119.13115399]
[1754098272931,4.13621129,164.27,164.25,76.27115399]
[1754098273105,4.13621129,164.27,164.25,80.54797952]
[1754098273307,4.82621129,164.27,164.25,80.54797952]
[1754098273907,4.82621129,164.27,164.26,42.86]
[1754098275120,4.82621129,164.27,164.26,119.13115399]
[1754098276633,4.13621129,164.27,164.26,123.40797952]
[1754098277022,0.03,164.27,164.26,129.65588893]
[1754098278934,0.03,164.27,164.26,129.49588893]
[1754098280022,0.03,164.27,164.26,123.40797952]
[1754098282626,0.72,164.27,164.26,123.40797952]
[1754098283143,0.72,164.27,164.26,119.13115399]
[1754098286415,4.82621129,164.27,164.26,119.13115399]
[1754098289146,4.82621129,164.27,164.26,76.27115399]
[1754098294157,9.10303682,164.27,164.24,42.82]
[1754098294328,4.77621129,164.26,164.23,119.09115399]
[1754098294526,9.05303682,164.25,164.23,76.27115399]
[1754098294864,4.77621129,164.24,164.23,76.27115399]
[1754098295731,0.67,164.24,164.23,76.27115399]
[1754098295937,4.77488244,164.24,164.23,76.27115399]
[1754098296419,9.05170797,164.24,164.23,76.27115399]
[1754098298327,4.94682553,164.24,164.21,119.13115399]
[1754098298528,4.27682553,164.22,164.21,0.06]
[1754098298751,8.38170797,164.22,164.21,0.06]
[1754098298941,9.05170797,164.22,164.21,0.06]
[1754098299142,9.05170797,164.22,164.19,0.06]
[1754098299343,52.50233693,164.2,164.15,0.06]
[1754098299553,4.27682553,164.16,164.15,0.06]
[1754098299924,4.94682553,164.16,164.15,0.06]
[1754098300244,4.10488244,164.18,164.15,4.61682553]
[1754098300450,8.38170797,164.2,164.16,0.28]
[1754098300635,4.10488244,164.2,164.16,4.55682553]
[1754098301333,4.77488244,164.2,164.16,4.55682553]
[1754098303155,23.07928544,164.2,164.16,4.55682553]
[1754098303334,18.974403,164.2,164.16,4.55682553]
[1754098303952,23.25122853,164.2,164.15,53.22879733]
[1754098304147,0.67,164.19,164.15,53.22879733]
[1754098304454,0.67,164.19,164.15,53.50879733]
[1754098304648,0.67,164.19,164.15,129.77995132]
[1754098305551,0.67,164.19,164.15,125.50312579]
[1754098305734,0.67,164.19,164.15,129.77995132]
[1754098308243,4.94682553,164.2,164.15,129.77995132]
[1754098309243,4.94682553,164.2,164.15,125.50312579]
[1754098309441,4.94682553,164.2,164.15,129.77995132]
[1754098309879,4.27682553,164.2,164.15,129.77995132]
[1754098310041,0.67,164.19,164.15,129.77995132]
[1754098310640,0.67,164.19,164.16,4.27682553]
[1754098311285,0.67,164.18,164.15,125.22312579]
[1754098311451,0.67,164.18,164.15,129.49995132]
[1754098314472,0.67,164.18,164.15,129.77995132]
[1754098315674,0.7,164.19,164.15,129.77995132]
[1754098316680,0.67,164.18,164.15,125.22312579]
[1754098316853,0.67,164.18,164.15,129.49995132]
[1754098319149,0.67,164.18,164.15,125.22312579]
[1754098319348,0.67,164.18,164.15,129.49995132]
[1754098324886,0.67,164.18,164.15,125.22312579]
[1754098325388,0.67,164.18,164.15,129.49995132]
[1754098326287,0.69,164.17,164.15,129.49995132]
[1754098329879,4.30682553,164.19,164.15,0.06]
[1754098330090,0.69,164.18,164.15,0.06]
[1754098330862,0.69,164.18,164.15,6.15198594]
[1754098331266,0.69,164.18,164.15,10.42881147]
[1754098332679,4.11370856,164.19,164.15,0.06]
[1754098332879,0.69,164.17,164.15,0.06]
[1754098338107,0.69,164.16,164.15,0.06]
[1754098338399,0.69,164.16,164.15,76.33115399]
[1754098340508,4.77827429,164.16,164.15,76.33115399]
[1754098340691,0.69,164.16,164.15,76.33115399]
[1754098340890,4.08827429,164.16,164.15,76.33115399]
[1754098341192,4.77827429,164.16,164.15,76.33115399]
[1754098341407,0.69,164.16,164.15,0.06]
[1754098341709,4.77827429,164.16,164.15,0.06]
[1754098342200,0.69,164.16,164.15,0.06]
[1754098342411,4.77827429,164.16,164.15,0.06]
[1754098342980,9.05509982,164.16,164.15,0.06]
[1754098343980,16.78468397,164.15,164.13,0.06]
[1754098344180,51.14978379,164.14,164.13,0.06]
[1754098344420,56.65931064,164.14,164.13,0.06]
[1754098344820,62.75167082,164.14,164.13,0.06]
[1754098345498,51.83978379,164.14,164.13,0.06]
[1754098347405,56.70081436,164.14,164.13,0.06]
[1754098347811,67.91138382,164.14,164.13,0.06]
[1754098348108,102.46857048,164.14,164.13,0.06]
[1754098348302,97.60753991,164.14,164.13,0.06]
[1754098349411,94.57978379,164.14,164.13,0.06]
[1754098350617,51.83978379,164.14,164.13,0.06]
[1754098351114,94.57978379,164.14,164.13,0.06]
[1754098351416,4.77827429,164.14,164.13,0.06]
[1754098351618,43.43,164.14,164.13,0.06]
[1754098351791,47.51827429,164.14,164.13,0.06]
[1754098351992,4.08827429,164.14,164.13,0.06]
[1754098352219,4.09158163,164.14,164.13,0.06]
[1754098352422,68.74,164.15,164.13,0.06]
[1754098352632,69.42,164.15,164.13,0.06]
[1754098354521,43.42,164.15,164.13,0.06]
[1754098354828,43.42,164.16,164.13,0.06]
[1754098355326,4.09198238,164.15,164.13,0.06]
[1754098355505,43.42,164.16,164.13,0.06]
[1754098356022,4.77168243,164.15,164.13,0.06]
[1754098356739,0.68,164.14,164.13,0.06]
[1754098357805,4.95682553,164.14,164.13,0.06]
[1754098358034,48.03682553,164.14,164.13,0.06]
[1754098358200,52.12850796,164.14,164.13,0.06]
[1754098360310,47.85168243,164.14,164.13,0.06]
[1754098360509,52.12850796,164.14,164.13,0.06]
[1754098360927,54.54641713,164.14,164.13,0.06]
[1754098363222,60.63877731,164.14,164.13,0.06]
[1754098363529,60.63877731,164.14,164.11,0.06]
[1754098363724,6.6947347,164.12,164.11,0.06]
[1754098363925,53.86641713,164.12,164.11,0.06]
[1754098364130,47.85168243,164.12,164.11,0.06]
[1754098364441,54.54641713,164.12,164.11,0.06]
[1754098364843,77.4242037,164.12,164.11,0.06]
[1754098365034,82.54173637,164.12,164.11,0.06]
[1754098365236,42.78468397,164.1,164.09,0.06]
[1754098365432,96.6311011,164.1,164.09,0.06]
[1754098365617,97.3111011,164.1,164.09,0.06]
[1754098366322,99.7537751,164.1,164.09,0.06]
[1754098366722,105.84762031,164.1,164.09,0.06]
[1754098368325,16.78468397,164.09,164.01,5.8347347]
[1754098368537,43.74,164.08,163.96,16.98468397]
[1754098368735,0.68,164.07,164.01,6.6947347]
[1754098368931,43.04,164.06,164.01,6.6947347]
[1754098369133,43.72,164.06,163.99,6.09781541]
[1754098369448,7.3747347,164.05,163.99,6.6947347]
[1754098369748,43.72,164.04,163.99,6.6947347]
[1754098369952,43.72,164.04,163.99,96.2947347]
[1754098370145,43.72,164.04,164.0,6.6947347]
[1754098370859,43.72,164.04,163.99,89.6]
[1754098371031,43.72,164.04,163.99,96.2947347]
[1754098371528,43.72,164.04,164.0,6.6947347]
[1754098371728,43.72,164.04,164.0,96.2947347]
[1754098372426,43.04,164.04,163.99,6.6947347]
[1754098372626,0.68,164.03,163.99,6.6947347]
[1754098373545,43.12,164.05,164.02,6.6947347]
[1754098373929,43.12,164.05,163.98,121.69825822]
[1754098374237,43.12,164.05,164.02,6.6947347]
[1754098374824,43.12,164.05,163.99,6.09783892]
[1754098375045,43.12,164.05,164.02,6.6947347]
[1754098375350,0.68,164.06,164.02,6.6947347]
[1754098375727,0.68,164.06,164.02,96.2947347]
[1754098377353,6.6947347,164.05,164.02,89.6]
[1754098377550,0.68,164.04,164.02,89.6]
[1754098380241,0.68,164.04,164.02,89.66]
[1754098380636,0.66,164.03,164.02,89.66]
[1754098381635,0.66,164.03,164.02,0.06]
[1754098382057,26.66,164.03,164.02,0.06]
[1754098382456,33.3547347,164.03,164.02,0.06]
[1754098383638,26.66,164.03,164.02,0.06]
[1754098383847,49.7947347,164.04,164.02,0.06]
[1754098384143,43.1,164.04,164.02,0.06]
[1754098384350,43.76,164.04,164.02,0.06]
[1754098385153,43.1,164.04,164.02,0.06]
[1754098385936,43.76,164.04,164.02,0.06]
[1754098386366,0.66,164.03,164.02,0.06]
[1754098389559,43.76,164.04,164.02,0.06]
[1754098390763,0.66,164.03,164.02,0.06]
[1754098396757,43.1,164.04,164.02,0.06]
[1754098396952,0.66,164.05,164.02,0.06]
[1754098397155,0.66,164.04,164.02,0.06]
[1754098398557,44.22,164.05,164.02,0.06]
[1754098398754,0.66,164.05,164.02,6.7547347]
[1754098399155,0.66,164.05,164.02,0.06]
[1754098399355,0.66,164.05,164.02,6.7547347]
[1754098399671,69.54,164.07,164.03,6.6947347]
[1754098399850,70.2,164.07,164.03,6.6947347]
[1754098400055,0.66,164.06,164.03,6.6947347]
[1754098401467,0.66,164.05,164.02,0.06]
[1754098401772,0.66,164.05,164.02,6.7547347]
[1754098402088,0.66,164.05,164.03,6.6947347]
[1754098403164,44.2,164.07,164.03,6.6947347]
[1754098403356,0.66,164.07,164.03,6.6947347]
[1754098403554,0.66,164.06,164.03,6.6947347]
[1754098403772,0.66,164.06,164.03,96.2947347]
[1754098404786,0.66,164.06,164.03,93.88737141]
[1754098405988,0.66,164.06,164.03,4.28737141]
[1754098406595,0.66,164.06,164.02,6.15673951]
[1754098406823,0.66,164.06,164.04,4.28737141]
[1754098407251,4.75176008,164.06,164.04,4.28737141]
[1754098407418,0.66,164.06,164.04,4.28737141]
[1754098407733,4.75176008,164.07,164.04,4.28737141]
[1754098407929,0.66,164.07,164.04,4.28737141]
[1754098408243,4.09176008,164.06,164.05,4.28737141]
[1754098408404,4.09176008,164.09,164.05,4.28737141]
[1754098408605,4.09176008,164.1,164.07,4.28737141]
[1754098409142,4.75176008,164.1,164.07,4.28737141]
[1754098409344,4.75176008,164.1,164.08,6.094588]
[1754098409639,4.75176008,164.1,164.08,10.38195941]
[1754098410007,4.09176008,164.1,164.08,10.38195941]
[1754098410211,4.78176008,164.11,164.08,10.38195941]
[1754098410647,4.78176008,164.11,164.09,4.28737141]
[1754098410941,4.78176008,164.11,164.1,6.69432275]
[1754098411251,4.12176008,164.11,164.09,12.78844484]
[1754098411628,4.80176008,164.11,164.09,12.78844484]
[1754098412121,4.12176008,164.11,164.09,12.78844484]
[1754098412742,0.03,164.11,164.09,12.78844484]
[1754098414050,0.03,164.11,164.09,6.69432275]
[1754098414230,0.03,164.11,164.1,6.69432275]
[1754098416367,0.03,164.11,164.1,12.78816796]
[1754098419758,0.71,164.11,164.1,12.78816796]
[1754098420145,0.03,164.11,164.1,12.78816796]
[1754098421760,0.03,164.11,164.1,95.69384521]
[1754098421931,0.03,164.11,164.1,102.38816796]
[1754098425162,0.03,164.15,164.12,26.0]
[1754098425370,0.03,164.19,164.15,16.78468397]
[1754098425568,0.03,164.19,164.18,6.69432275]
[1754098425769,0.03,164.19,164.18,50.15432275]
[1754098426865,0.03,164.19,164.18,56.24519861]
[1754098429061,0.68,164.26,164.2,13.3886455]
[1754098429373,0.68,164.26,164.2,56.8286455]
[1754098429573,0.68,164.26,164.2,74.22234286]
[1754098429748,0.03,164.27,164.2,74.22234286]
[1754098430071,0.71,164.27,164.2,73.61332947]
[1754098430773,0.71,164.27,164.2,79.70346345]
[1754098432263,0.71,164.27,164.21,16.78468397]
[1754098432471,0.71,164.27,164.26,6.69432275]
[1754098432671,0.71,164.27,164.26,50.13432275]
[1754098433467,0.03,164.27,164.26,50.13432275]
[1754098433776,0.03,164.27,164.26,56.22223216]
[1754098434358,0.03,164.27,164.26,50.13432275]
[1754098434765,0.71,164.27,164.26,50.13432275]
[1754098435148,0.03,164.27,164.26,50.13432275]
[1754098435870,0.03,164.27,164.26,56.22223216]
[1754098438678,0.03,164.27,164.26,50.13432275]
[1754098442072,0.03,164.27,164.26,43.44]
[1754098442279,0.03,164.27,164.26,50.13432275]
[1754098442457,0.73,164.27,164.26,50.13432275]
[1754098443165,0.73,164.27,164.26,56.22223216]
[1754098443367,0.03,164.27,164.26,50.13432275]
[1754098443763,0.03,164.27,164.26,139.73432275]
[1754098444284,0.03,164.27,164.26,50.13432275]
[1754098444978,0.03,164.27,164.26,43.44]
[1754098445174,0.03,164.27,164.26,50.13432275]
[1754098445470,0.73,164.27,164.26,50.13432275]
[1754098447686,0.73,164.27,164.26,43.44]
[1754098447884,0.73,164.27,164.26,50.13432275]
[1754098449394,0.73,164.27,164.26,6.69432275]
[1754098449579,0.73,164.27,164.26,139.67432275]
[1754098453799,0.73,164.27,164.26,132.98]
[1754098454006,0.73,164.27,164.26,139.67432275]
[1754098455296,0.73,164.27,164.26,96.29432275]
[1754098455487,0.73,164.27,164.26,139.67432275]
[1754098456821,0.73,164.27,164.26,145.76223216]
[1754098457101,0.03,164.27,164.26,145.76223216]
[1754098457696,0.03,164.27,164.26,139.67432275]
[1754098461001,0.03,164.27,164.26,137.25450032]
[1754098461698,0.03,164.27,164.26,143.34240973]
[1754098462397,0.03,164.27,164.26,53.74240973]
[1754098463186,0.03,164.27,164.26,160.1270937]
[1754098463414,0.03,164.27,164.26,312.0654497]
[1754098464609,0.03,164.28,164.27,16.78468397]
[1754098464815,0.03,164.29,164.28,106.35468397]
[1754098464998,0.03,164.29,164.28,331.96983984]
[1754098465313,1e-08,164.29,164.28,334.40804684]
[1754098465712,0.03,164.3,164.29,30.13499571]
[1754098465913,0.03,164.3,164.29,30.74367548]
[1754098466530,0.03,164.3,164.29,39.26838321]
[1754098468919,0.03,164.31,164.29,39.26838321]
[1754098469120,0.03,164.31,164.3,99.53499571]
[1754098469614,0.03,164.31,164.3,189.71363843]
[1754098469830,0.03,164.31,164.3,189.10499571]
[1754098470193,0.03,164.31,164.3,73.53499571]
[1754098470388,0.03,164.31,164.3,80.23006569]
[1754098472500,0.03,164.31,164.3,82.66782569]
[1754098472713,0.1,164.32,164.3,82.66782569]
[1754098472902,0.69,164.35,164.34,26.0]
[1754098473221,0.69,164.35,164.34,75.99515587]
[1754098475026,0.69,164.35,164.34,82.08010171]
[1754098475230,0.72,164.38,164.35,16.78468397]
[1754098475405,0.69,164.37,164.35,23.45983984]
[1754098475925,0.03,164.38,164.35,24.0682974]
[1754098476103,0.03,164.38,164.35,26.5051664]
[1754098477021,0.03,164.38,164.35,32.589742]
[1754098478916,0.03,164.38,164.37,42.78468397]
[1754098479216,0.03,164.43,164.37,42.78468397]
[1754098479217,0.03,164.43,164.42,26.0]
[1754098479418,0.03,164.43,164.42,75.91515587]
[1754098479922,0.72,164.43,164.42,75.91515587]
[1754098480128,0.72,164.43,164.42,78.35157987]
[1754098481316,0.72,164.43,164.42,84.43356502]
[1754098481701,0.03,164.43,164.42,84.43356502]
[1754098485207,0.03,164.43,164.42,101.21824899]
[1754098490938,0.03,164.43,164.42,101.13824899]
[1754098493232,0.03,164.43,164.42,101.7464475]
[1754098495440,0.72,164.43,164.42,51.89626384]
[1754098495643,0.72,164.43,164.42,94.29626384]
[1754098497826,0.72,164.43,164.42,91.85983984]
[1754098499663,0.72,164.43,164.42,97.94182499]
[1754098499961,0.03,164.43,164.42,97.94182499]
[1754098500746,0.69,164.43,164.42,97.94182499]
[1754098501152,0.69,164.43,164.42,100.37780399]
[1754098502032,0.03,164.43,164.42,100.37780399]
[1754098502938,0.03,164.43,164.42,93.70264812]
[1754098503255,0.69,164.43,164.42,94.29581884]
[1754098504233,0.69,164.43,164.42,100.37780399]
[1754098504452,0.03,164.43,164.42,100.37780399]
[1754098505833,0.69,164.46,164.45,89.37]
[1754098506033,0.69,164.46,164.45,139.24515587]
[1754098512363,0.69,164.46,164.45,132.57]
[1754098512574,0.69,164.46,164.45,139.24515587]
[1754098512746,0.69,164.46,164.45,132.57]
[1754098512941,0.69,164.46,164.45,139.24515587]
[1754098515265,0.03,164.46,164.45,139.24515587]
[1754098515677,0.03,164.46,164.45,188.79071548]
[1754098518653,0.03,164.46,164.45,188.11071548]
[1754098519282,0.69,164.46,164.45,182.02983984]
[1754098520468,0.69,164.46,164.45,188.11071548]
[1754098520675,0.03,164.48,164.47,88.68]
[1754098520878,0.03,164.48,164.47,138.49515587]
[1754098522473,0.03,164.48,164.47,138.47515587]
[1754098522679,0.69,164.48,164.47,138.47515587]
[1754098528267,0.03,164.48,164.47,138.47515587]
[1754098528883,4.75719079,164.48,164.47,88.68]
[1754098529200,4.75719079,164.48,164.47,131.74]
[1754098530873,4.75719079,164.48,164.45,88.68]
[1754098531095,11.43234666,164.47,164.45,88.68]
[1754098531393,4.75719079,164.46,164.45,88.68]
[1754098531982,0.69,164.46,164.45,88.68]
[1754098532185,4.75719079,164.46,164.45,88.68]
[1754098532389,0.69,164.46,164.45,88.68]
[1754098532583,4.75719079,164.46,164.45,88.68]
[1754098532785,0.69,164.46,164.45,88.68]
[1754098532994,4.75719079,164.46,164.45,88.68]
[1754098533199,0.69,164.46,164.45,88.68]
[1754098533388,4.75719079,164.46,164.45,88.68]
[1754098533701,0.69,164.46,164.45,88.68]
[1754098533904,4.75719079,164.46,164.45,88.68]
[1754098534117,0.69,164.46,164.44,131.72]
[1754098534405,0.69,164.45,164.44,131.72]
[1754098540812,4.75719079,164.45,164.44,131.72]
[1754098540997,0.69,164.45,164.44,131.72]
[1754098542993,0.69,164.45,164.43,88.74]
[1754098543209,10.74234666,164.44,164.43,88.74]
[1754098543411,11.43234666,164.44,164.43,88.74]
[1754098544214,11.43234666,164.44,164.43,0.06]
[1754098545318,17.51359209,164.44,164.43,0.06]
[1754098545712,34.29827606,164.44,164.43,0.06]
[1754098548115,77.23827606,164.44,164.43,0.06]
[1754098549426,34.29827606,164.44,164.43,0.06]
[1754098549599,77.23827606,164.44,164.43,0.06]
[1754098549802,71.15703063,164.44,164.43,0.06]
[1754098550603,28.21703063,164.44,164.43,0.06]
[1754098551219,30.65449463,164.44,164.43,0.06]
[1754098551809,36.73574006,164.44,164.43,0.06]
[1754098552415,79.69574006,164.44,164.43,0.06]
[1754098561413,56.13981066,164.44,164.43,0.06]
[1754098562436,49.46465479,164.44,164.43,0.74]
[1754098562815,45.397464,164.44,164.43,0.74]
[1754098563022,49.4690006,164.44,164.43,0.74]
[1754098564129,6.5090006,164.44,164.43,0.74]
[1754098565037,4.0715366,164.44,164.43,0.74]
[1754098568519,11.44669247,164.44,164.43,0.06]
[1754098568840,34.31262187,164.44,164.43,0.06]
[1754098569618,52.59359987,164.44,164.43,0.06]
[1754098572124,83.68302062,164.44,164.43,0.06]
[1754098573025,78.59359987,164.44,164.43,0.06]
[1754098576462,78.59359987,164.44,164.42,0.06]
[1754098576635,54.62669247,164.43,164.42,0.06]
[1754098577938,60.70830774,164.43,164.42,0.06]
[1754098579149,63.14621774,164.43,164.42,0.06]
[1754098581548,69.97693899,164.43,164.42,0.06]
[1754098586442,69.97693899,164.43,164.41,0.06]
[1754098586443,16.78468397,164.42,164.41,0.06]
[1754098586684,20.85622057,164.42,164.41,0.06]
[1754098587050,19.22259397,164.42,164.41,0.06]
[1754098587362,23.30358008,164.42,164.41,0.06]
[1754098587545,36.0607211,164.42,164.41,0.06]
[1754098588157,42.89144235,164.42,164.41,0.06]
[1754098588769,43.59144235,164.42,164.41,0.06]
[1754098589461,41.15353235,164.42,164.41,0.06]
[1754098589837,40.45353235,164.42,164.41,0.06]
[1754098591070,33.6228111,164.42,164.41,0.06]
[1754098591254,34.2828111,164.42,164.41,0.06]
[1754098593075,40.42714331,164.42,164.41,0.06]
[1754098594670,40.42714331,164.42,164.41,0.72]
[1754098594873,38.02335068,164.42,164.41,0.72]
[1754098595249,74.31901847,164.42,164.41,0.72]
[1754098596456,100.31901847,164.42,164.41,0.72]
[1754098599279,83.5343345,164.42,164.41,0.72]
[1754098599680,83.5643345,164.42,164.41,0.72]
[1754098600267,88.66580135,164.42,164.41,0.72]
[1754098601165,83.5643345,164.42,164.41,0.72]
[1754098602156,88.66580135,164.42,164.41,0.72]
[1754098604187,84.58481524,164.42,164.41,0.72]
[1754098606786,84.58481524,164.42,164.41,0.06]
[1754098607086,103.73236457,164.42,164.41,0.06]
[1754098607264,89.21458336,164.42,164.41,0.06]
[1754098607858,42.78468397,164.41,164.4,0.06]
[1754098608062,70.94987522,164.41,164.4,0.06]
[1754098608267,26.0,164.39,164.38,0.06]
[1754098608483,73.25136324,164.39,164.38,0.06]
[1754098608669,73.91136324,164.39,164.38,0.06]
[1754098608863,82.39986797,164.39,164.38,0.06]
[1754098609182,81.73986797,164.39,164.38,0.06]
[1754098609383,98.52455194,164.39,164.38,0.06]
[1754098609769,98.52455194,164.39,164.38,0.72]
[1754098610089,103.6344323,164.39,164.38,0.72]
[1754098610281,98.52455194,164.39,164.38,0.72]
[1754098610462,49.06309507,164.39,164.38,0.72]
[1754098610665,5.10988036,164.4,164.38,0.72]
[1754098610864,42.98,164.4,164.38,0.72]
[1754098611367,86.84910593,164.41,164.38,0.72]
[1754098611672,80.76665326,164.41,164.38,0.72]
[1754098611870,54.76665326,164.41,164.38,0.72]
[1754098612303,5.10988036,164.4,164.38,0.72]
[1754098612896,48.08988036,164.41,164.38,0.72]
[1754098613980,55.42665326,164.41,164.38,0.72]
[1754098614290,54.76665326,164.41,164.39,0.66]
[1754098614498,54.76665326,164.41,164.38,0.06]
[1754098614698,54.76665326,164.41,164.4,0.66]
[1754098615272,48.08988036,164.41,164.4,0.66]
[1754098615677,5.10988036,164.41,164.4,0.66]
[1754098616801,48.11988036,164.42,164.4,0.66]
[1754098617507,48.11988036,164.42,164.38,95.4167729]
[1754098617682,48.11988036,164.42,164.41,0.66]
[1754098618203,48.11988036,164.42,164.38,95.4167729]
[1754098618394,48.77988036,164.42,164.38,95.4167729]
[1754098618598,48.11988036,164.42,164.39,0.66]
[1754098620306,5.13988036,164.42,164.41,6.6767729]
[1754098620476,0.03,164.42,164.41,7.3367729]
[1754098620684,5.13988036,164.46,164.41,7.3367729]
[1754098620897,0.03,164.46,164.45,6.6767729]
[1754098621181,0.03,164.46,164.45,7.3867729]
[1754098625277,0.03,164.46,164.45,0.71]
[1754098625681,0.03,164.46,164.45,6.6767729]